Cogmind - Beta 14 @@@ ROGUE MODE // 2024.08.11 @ 18:51:18 Player: osman sinnoks Result: Destroyed by G-50 Soldier with Heavy Laser Performance ------------- Evolutions (3) 1500 Regions Visited (13) 2600 Robots Destroyed (77) 385 Value Destroyed (2380) 2380 Prototype IDs (7) 140 Alien Tech Used (0) 0 Bonus (708) 708 TOTAL SCORE: 7713 Bonus ------- High Alert Combat Kills 2 Follower Combat Kills 578 Entered Garrisons 200 Aligned with FarCom 300 Met Imprinter 300 Friendly Fire -672 Cogmind --------- Core Integrity 0/700 Matter 300/300 Energy 100/100 System Corruption 0% Temperature Cool (9) Movement Core (150) Ox2 Location -6/Proximity Caves Parts ------- > --- POWER (1) -------- (None) > --- PROPULSION (2) --- (None) > --- UTILITY (7) ------ Improved Signal Interpreter Targeting Computer Hacking Suite Mobile Refinery Mk. CCLXVII > --- WEAPON (3) ------- CR-A16's Pointy Stick > --- INVENTORY (5) ---- Backup Power III Light Nuclear Core Improved Medium Armor Plating Backup Laser III Mini Grenade Launcher Peak State ------------ > --- POWER ------------ Enhanced Nuclear Core > --- PROPULSION ------- Advanced Treads Advanced Treads > --- UTILITY ---------- Advanced Heat Sink Small Storage Unit Improved Signal Interpreter Targeting Computer Core Analyzer Transmission Jammer Hardened Light Armor Plating > --- WEAPON ----------- Improved EM Shotgun Particle Gun Heavy Laser > --- INVENTORY -------- Ion Engine Light Ion Engine Light Nuclear Core Advanced Treads Heavy Armor Plating Lightning Gun Heavy Particle Cannon [Rating: 42] Favorites ----------- Power Backup Power III Engine Backup Power III Power Core Light Nuclear Core Propulsion Backup Propulsion III Treads Advanced Treads Leg Aluminum Leg Hover Unit Backup Propulsion III Utility Targeting Computer Device Improved Shield Generator Storage Small Storage Unit Processor Targeting Computer Hackware Hacking Suite Protection Insulated Plating Weapon Backup Laser III Energy Gun Backup Laser III Energy Cannon Heavy Particle Cannon Ballistic Gun Barrage Gun Ballistic Cannon Flak Cannon Launcher Rocket Launcher Special Weapon Field Lobotomy Kit Impact Weapon Heavy Hammer Piercing Weapon CR-A16's Pointy Stick Build | -11 -10 -10 -10 -9 -8 -8 -7 -7 -7 -7 -7 -7 -6 ------- Run | Yrd Mat Min Exi Min Mat Sto Fac Gar Fac Low Low Zio Pro Slots Evolved 6 | . . . . . 4 . 2 . . . . . . Power . | . . . . . . . . . . . . . . Propulsion . | . . . . . . . . . . . . . . Utility 5 | . . . . . 3 . 2 . . . . . . Weapon 1 | . . . . . 1 . . . . . . . . Parts Attached 80 | 7 5 5 3 6 12 9 2 7 12 1 1 6 4 Power 12 | 2 . 1 . 2 . 1 . 1 2 . . 1 2 Engine 6 | 2 . . . 2 . . . 1 1 . . . . Core 6 | . . 1 . . . 1 . . 1 . . 1 2 Reactor . | . . . . . . . . . . . . . . Propulsion 14 | 2 2 2 . 2 1 3 . 1 1 . . . . Treads 4 | . . . . . . 2 . 1 1 . . . . Leg 6 | 2 . . . 2 1 1 . . . . . . . Wheel . | . . . . . . . . . . . . . . Hover 4 | . 2 2 . . . . . . . . . . . Flight . | . . . . . . . . . . . . . . Utility 24 | 1 1 1 1 . 5 2 2 2 6 . . 3 . Device 9 | 1 . . 1 . 1 1 1 1 1 . . 2 . Storage 1 | . . . . . 1 . . . . . . . . Processor 5 | . 1 1 . . . 1 1 . 1 . . . . Hackware 2 | . . . . . 1 . . . . . . 1 . Protection 7 | . . . . . 2 . . 1 4 . . . . Artifact . | . . . . . . . . . . . . . . Weapon 30 | 2 2 1 2 2 6 3 . 3 3 1 1 2 2 Energy Gun 7 | . . . . . 2 . . 3 1 . 1 . . Energy Cannon 1 | . . . . . . . . . 1 . . . . Ballistic Gun 10 | 2 . . . . . 3 . . 1 1 . 2 1 Ballistic Cannon 2 | . . . . . 2 . . . . . . . . Launcher 6 | . 2 1 . 1 2 . . . . . . . . Special Weapon 2 | . . . 2 . . . . . . . . . . Impact Weapon 1 | . . . . 1 . . . . . . . . . Slashing Weapon . | . . . . . . . . . . . . . . Piercing Weapon 1 | . . . . . . . . . . . . . 1 Special Melee Weapon . | . . . . . . . . . . . . . . Unidentified Prototypes 5 | . . . 2 . 1 . . . 1 . . 1 . Parts Lost 31 | . 1 3 . 1 3 1 . 6 4 5 1 . 6 Power 2 | . . . . 1 . . . . . . . . 1 Propulsion 7 | . . 1 . . 1 . . 1 1 1 . . 2 Utility 11 | . 1 1 . . 1 1 . 2 2 2 . . 1 Weapon 11 | . . 1 . . 1 . . 3 1 2 1 . 2 Highest Loss Streak 6 | . 1 3 . 1 3 1 . 6 4 4 1 . 6 To Critical Strikes . | . . . . . . . . . . . . . . Average Slot Usage (%) 84 | . 85 89 63 81 93 93 100 91 93 85 15 79 82 Engine 6 | . 14 6 . 9 9 5 . 1 7 6 . 6 2 Core 1 | . . 7 14 4 . 3 7 5 . . . . 4 Treads 4 | . . . . . . 3 15 14 14 13 . . . Leg 3 | . 12 . . 15 17 8 . . . . . . . Hover 8 | . 15 27 28 10 . . . . . . . 14 14 Device 10 | . 3 . . . 6 9 15 15 14 6 . 12 14 Storage 3 | . . . . . 7 9 7 7 7 6 . . . Processor 14 | . 10 19 14 14 9 15 23 19 16 15 15 15 15 Hackware 3 | . . . . . 8 2 . . . . . 6 7 Protection 3 | . . . . . 7 9 7 5 7 13 . . . Energy Gun 7 | . . . . . 13 7 . 6 13 2 . 10 2 Energy Cannon 1 | . . . . . . . . . 3 6 . . . Ballistic Gun 8 | . 14 5 . . . 3 23 14 4 10 . 10 14 Launcher 1 | . 13 22 . 9 2 . . . . . . . . Impact Weapon 1 | . . . . 13 9 7 . . . . . . . Peak Build Rating 42 | 6 9 12 18 20 27 32 39 39 42 42 9 37 41 Average Rating 30 | 4 7 10 12 11 22 27 38 35 40 38 4 33 39 On Entrance 19 | . 6 9 12 18 8 25 32 39 38 42 4 5 37 Naked Turns . | . . . . . . . . . . . . . . Heaviest Build 57 | 8 10 13 13 16 26 26 24 35 57 57 . 20 27 Greatest Support 44 | 20 20 14 14 20 25 44 44 44 44 44 3 16 16 Greatest Overweight (x) 2 | 2 1 1 . 1 1 1 . . 1 1 . 1 2 Average Overweight (x) . | . . . . . . . . . . . . . 1 Largest Inventory Capacity 8 | 5 5 5 5 5 8 8 8 8 8 8 5 5 5 Average Capacity 6 | 5 5 5 5 5 7 8 8 8 8 7 5 5 5 Most Carried 8 | 2 5 5 5 5 8 8 7 6 8 4 5 5 5 Average Carried 5 | 1 4 3 4 4 7 6 6 5 7 3 3 4 4 Final Capacity 8 | 5 5 5 5 5 8 8 8 8 8 5 5 5 5 Final Carried 8 | 2 5 3 5 5 6 8 6 5 4 3 4 5 5 Class Distribution -------------------- 33% | Mutant 20% | Derelict-Gunner 13% | Gunner 8% | Scavenger-Skirmisher 7% | Commander-Mutant 5% | Scavenger-Gunner 4% | Scavenger-Tank 3% | Commander-Gunner Dominant Class ---------------- Mutant | -10/Materials Mutant | -10/Mines Mutant | -10/Exiles Commander-Mutant | -9/Mines Mutant | -8/Materials Commander-Mutant | -8/Storage Commander-Gunner | -7/Factory Commander-Gunner | -7/Garrison Scavenger-Skirmisher | -7/Factory Scavenger-Tank | -7/Lower Caves Mutant | -7/Lower Caves Derelict-Gunner | -7/Zion Mutant | -6/Proximity Caves Resources | -11 -10 -10 -10 -9 -8 -8 -7 -7 -7 -7 -7 -7 -6 ----------- Run | Yrd Mat Min Exi Min Mat Sto Fac Gar Fac Low Low Zio Pro Matter Collected 2304 | 280 168 122 . 191 160 463 . 245 359 94 38 109 75 Remotely . | . . . . . . . . . . . . . . Salvage Created 2662 | 106 352 205 . . 309 578 . 494 441 106 . . 71 Parts 153 | 5 23 15 . . 16 31 . 26 27 4 . . 6 Haulers Intercepted 3 | . 1 . . . 2 . . . . . . . . Recyclers Shooed 8 | 1 5 . . 1 . 1 . . . . . . . Parts Field Recycled . | . . . . . . . . . . . . . . Retrieved Matter . | . . . . . . . . . . . . . . Parts Self-Destructed 7 | . . . . . . . . . . 3 . . 4 Prevented 2 | . . . . . . . . . . 2 . . . Kills | -11 -10 -10 -10 -9 -8 -8 -7 -7 -7 -7 -7 -7 -6 ------- Run | Yrd Mat Min Exi Min Mat Sto Fac Gar Fac Low Low Zio Pro Combat Hostiles Destroyed 55 | . 7 8 . . 5 11 . 12 8 2 . . 2 Melee 1 | . . . . . . . . . . . . . 1 Guns 25 | . 1 . . . 1 5 . 10 5 2 . . 1 Cannons 8 | . . . . . . 6 . . 2 . . . . AOE 21 | . 6 8 . . 4 . . 2 1 . . . . Classes Destroyed 15 | 2 5 2 . . 2 1 . 1 1 . . . 1 Worker 3 | . 2 . . . . . . . 1 . . . . Builder 4 | . . 1 . . 2 1 . . . . . . . Tunneler 1 | 1 . . . . . . . . . . . . . Hauler 3 | . 1 . . . 2 . . . . . . . . Recycler 5 | 1 1 . . . . 2 . . 1 . . . . Operator 1 | . 1 . . . . . . . . . . . . Drone 1 | . . . . . . . . . . . . . 1 Watcher 2 | . 1 . . . . . . . 1 . . . . Swarmer 13 | . . 4 . . . 1 . 5 3 . . . . Grunt 30 | . 7 6 . . 4 4 . 4 3 2 . . . Brawler 3 | . . . . . . . . 3 . . . . . Sentry 5 | . . . . . . 4 . . 1 . . . . Hunter 4 | . . . . . 1 2 . . . . . . 1 Programmer 1 | . . . . . . . . . 1 . . . . Assembled 1 | . . . . . 1 . . . . . . . . Thug 1 | . . 1 . . . . . . . . . . . Best Kill Streak 11 | 2 6 9 . . 6 6 . 11 4 2 . . 1 Combat Bots Only 11 | . 3 3 . . 4 3 . 11 4 2 . . 1 Max Kills in Single Turn 3 | 1 2 3 . . 2 1 . 2 2 1 . . 1 Gunslinging . | . . . . . . . . . . . . . . Exploded 3 | . 1 3 . . 2 . . 1 1 . . . . Melee 1 | . . . . . . . . . . . . . 1 Uniques/NPCs Destroyed . | . . . . . . . . . . . . . . Combat | -11 -10 -10 -10 -9 -8 -8 -7 -7 -7 -7 -7 -7 -6 -------- Run | Yrd Mat Min Exi Min Mat Sto Fac Gar Fac Low Low Zio Pro Hostile Shots Fired 462 | . 9 21 . 2 22 35 . 98 104 92 16 . 63 Missed 146 | . 2 9 . . 8 10 . 37 35 18 8 . 19 Damage Taken 5048 | . 153 379 . 64 471 373 . 966 753 1027 130 . 732 Core 1026 | . 24 118 . 12 97 67 . 118 6 339 84 . 161 Absorbed by Shields 61 | . . . . . . . . . . . . . 61 Core Remaining (%) 69 | 100 . . . 38 . 70 . . . . . . . Volleys Fired 185 | 5 28 13 . 5 10 35 . 29 38 13 2 . 7 Largest 3 | 2 2 2 . 1 2 3 . 3 3 3 1 . 3 Hottest 179 | 40 53 66 . . 90 89 . 75 179 158 69 . 101 Shots Fired 362 | 10 42 24 . 5 14 65 . 68 80 34 2 . 18 Gun 264 | 10 28 5 . . 7 41 . 68 61 24 2 . 18 Cannon 53 | . . . . . . 24 . . 19 10 . . . Launcher 40 | . 14 19 . . 7 . . . . . . . . Special 5 | . . . . 5 . . . . . . . . . Kinetic 237 | 10 28 5 . . . 57 . 64 37 22 . . 14 Thermal 55 | . . . . . . . . . 39 10 2 . 4 Explosive 40 | . 14 19 . . 7 . . . . . . . . Electromagnetic 25 | . . . . . 7 8 . 4 4 2 . . . Robot Hit Streak 17 | 5 7 2 . 6 6 9 . 10 17 7 1 . 1 Robot Miss Streak 8 | 1 2 6 . . 2 8 . 3 3 4 3 . 5 Penetration Max . | . . . . . . . . . . . . . . Secondary Targets 4 | . . . . . . . . 3 1 . . . . Max Gunslinging Chain 1 | . . . . . . . . 1 1 . . . . Shots Hit Robots 219 | 9 28 4 . 6 12 46 . 43 45 18 1 . 7 Core Hits 167 | 4 23 24 . . 19 40 . 26 19 8 . . 4 Critical Kills . | . . . . . . . . . . . . . . Critical Parts Destroyed 1 | . . . . . . . . 1 . . . . . Critical Strikes 3 | . . . . . . . . 1 2 . . . . Burn 2 | . . . . . . . . . 2 . . . . Destroy 1 | . . . . . . . . 1 . . . . . Melee Attacks 13 | . . . . 1 2 . . . . . . . 10 Impact 3 | . . . . 1 2 . . . . . . . . Slashing . | . . . . . . . . . . . . . . Piercing 10 | . . . . . . . . . . . . . 10 Sneak Attacks 2 | . . . . 1 1 . . . . . . . . Combat Hostiles . | . . . . . . . . . . . . . . Follow-up Attacks . | . . . . . . . . . . . . . . Damage Inflicted 6623 | 78 1084 935 . 117 901 849 . 1003 1084 358 40 . 174 Guns 2707 | 78 151 16 . . 100 426 . 847 690 283 40 . 76 Cannons 810 | . . . . . . 423 . . 312 75 . . . Explosions 2773 | . 933 919 . . 689 . . 156 76 . . . . Melee 327 | . . . . 117 112 . . . . . . . 98 Ramming 6 | . . . . . . . . . 6 . . . . Kinetic 2475 | 78 151 16 . . . 758 . 760 408 241 . . 63 Thermal 1017 | . . . . . 115 . . 156 618 75 40 . 13 Explosive 2426 | . 933 919 . . 574 . . . . . . . . Electromagnetic 372 | . . . . . 100 91 . 87 52 42 . . . Impact 229 | . . . . 117 112 . . . . . . . . Slashing . | . . . . . . . . . . . . . . Piercing 98 | . . . . . . . . . . . . . 98 Highest Corruption 7 | . . 5 5 5 . . . 6 7 7 7 7 . Average Corruption 6 | . . 5 5 5 . . . 6 6 7 7 7 . Corruption Purged . | . . . . . . . . . . . . . . Corruption Blocked . | . . . . . . . . . . . . . . Effects 65 | . . 6 2 3 . . . 2 30 19 3 . . Message Errors 25 | . . 3 2 1 . . . 1 12 5 1 . . Matter Fused 15 | . . . . 1 . . . 1 5 8 . . . Heat Flow Errors 6 | . . 1 . . . . . . 2 3 . . . Energy Discharges 4 | . . . . . . . . . 4 . . . . Data Loss (minor) 6 | . . . . . . . . . 3 1 2 . . Data Loss (major) 4 | . . 1 . 1 . . . . 2 . . . . Misfires 2 | . . 1 . . . . . . . 1 . . . Alerts 2 | . . . . . . . . . 1 1 . . . Weapon Failures 1 | . . . . . . . . . 1 . . . . Overload Shots . | . . . . . . . . . . . . . . Overflow Damage 252 | . 54 38 . . 146 . . . 14 . . . . Projectiles 14 | . . . . . . . . . 14 . . . . Explosions 182 | . 54 38 . . 90 . . . . . . . . Melee 56 | . . . . . 56 . . . . . . . . Knockbacks 13 | . . . . 1 . 12 . . . . . . . Impact 1 | . . . . 1 . . . . . . . . . Kinetic 11 | . . . . . . 11 . . . . . . . Secondary 1 | . . . . . . 1 . . . . . . . Self-Inflicted Damage 466 | . 64 217 . . 185 . . . . . . . . Shots 12 | . 2 6 . . 4 . . . . . . . . Rammed 1 | . . . . . . . . . 1 . . . . Targets Rammed 1 | . . . . . . . . . 1 . . . . Kicked . | . . . . . . . . . . . . . . Crushed . | . . . . . . . . . . . . . . Highest Temperature 543 | . 38 224 . . 90 189 . 17 378 543 34 . 60 Average Temperature 87 | . 13 50 . . 31 40 . 7 124 203 34 . 26 Received Heat Transfer 1682 | . 51 33 . . 90 126 . 153 186 753 9 . 281 Effects 5 | . . . . . . . . . . 5 . . . Shutdowns 1 | . . . . . . . . . . 1 . . . Interference 2 | . . . . . . . . . . 2 . . . Matter Decay 1 | . . . . . . . . . . 1 . . . Damage (minor) 1 | . . . . . . . . . . 1 . . . Siege Activations . | . . . . . . . . . . . . . . Robots Corrupted 1 | . . . . . 1 . . . . . . . . Combat Hostiles . | . . . . . . . . . . . . . . Parts Fried 3 | . . . . . 3 . . . . . . . . Impact Corruptions 1 | . . . . . 1 . . . . . . . . Robots Melted . | . . . . . . . . . . . . . . Combat Hostiles . | . . . . . . . . . . . . . . Parts Melted 6 | . . . . . 1 . . 1 4 . . . . Heat Transferred 1682 | . . . . . 150 . . 100 1210 111 74 . 37 Parts Sabotaged . | . . . . . . . . . . . . . . Parts Stolen . | . . . . . . . . . . . . . . Parts Stripped . | . . . . . . . . . . . . . . Power Chain Reactions 3 | . . . . . . . . 2 1 . . . . Alert | -11 -10 -10 -10 -9 -8 -8 -7 -7 -7 -7 -7 -7 -6 ------- Run | Yrd Mat Min Exi Min Mat Sto Fac Gar Fac Low Low Zio Pro Peak Influence 478 | 10 384 478 . 16 293 347 124 357 193 . . . . Initial 186 | . 6 96 . . 2 123 124 86 186 . . . . Average 143 | 4 136 284 . 6 115 185 124 236 100 . . . . Maximum Alert Level 2 | . 1 2 . . 1 1 . 1 . . . . . Low Security (%) 79 | 100 81 38 . 100 95 60 100 44 100 . . . . Level 1 19 | . 18 55 . . 4 39 . 55 . . . . . Level 2 . | . . 5 . . . . . . . . . . . Level 3 . | . . . . . . . . . . . . . . Level 4 . | . . . . . . . . . . . . . . Level 5 . | . . . . . . . . . . . . . . High Security . | . . . . . . . . . . . . . . Max Security . | . . . . . . . . . . . . . . Squads Dispatched 7 | . 1 . . . . 4 . . 2 . . . . Investigation 2 | . . . . . . 2 . . . . . . . Extermination 1 | . . . . . . . . . 1 . . . . Reinforcement 4 | . 1 . . . . 2 . . 1 . . . . Assault . | . . . . . . . . . . . . . . Garrison . | . . . . . . . . . . . . . . Intercept . | . . . . . . . . . . . . . . Searches Triggered . | . . . . . . . . . . . . . . Construction Impeded . | . . . . . . . . . . . . . . Haulers Reinforced 1 | . . . . . . . . . 1 . . . . Active Scanning Responses . | . . . . . . . . . . . . . . Cargo Convoy Interrupts . | . . . . . . . . . . . . . . Stealth | -11 -10 -10 -10 -9 -8 -8 -7 -7 -7 -7 -7 -7 -6 --------- Run | Yrd Mat Min Exi Min Mat Sto Fac Gar Fac Low Low Zio Pro Distress Signals 3 | . 1 . . . 1 1 . . . . . . . Communications Jammed . | . . . . . . . . . . . . . . Distress Signals . | . . . . . . . . . . . . . . Times Spotted 105 | . 10 6 . 9 12 18 . 16 11 7 8 . 8 Peak Tracking Total 8 | . 3 3 . 4 7 4 . 8 3 4 4 . 4 Tactical Retreats 6 | . . 1 . . . . . 1 . 2 2 . . Traps | -11 -10 -10 -10 -9 -8 -8 -7 -7 -7 -7 -7 -7 -6 ------- Run | Yrd Mat Min Exi Min Mat Sto Fac Gar Fac Low Low Zio Pro Traps Triggered 4 | . . . . . 1 3 . . . . . . . Indirectly . | . . . . . . . . . . . . . . Trap Hack Attempts . | . . . . . . . . . . . . . . Triggered . | . . . . . . . . . . . . . . Disarmed . | . . . . . . . . . . . . . . Reprogrammed . | . . . . . . . . . . . . . . Reused . | . . . . . . . . . . . . . . Traps Extracted . | . . . . . . . . . . . . . . Installed . | . . . . . . . . . . . . . . Triggered 2 | . . . . . . . . . . 2 . . . Machines | -11 -10 -10 -10 -9 -8 -8 -7 -7 -7 -7 -7 -7 -6 ---------- Run | Yrd Mat Min Exi Min Mat Sto Fac Gar Fac Low Low Zio Pro Machines Disabled 8 | . 2 2 . . 2 2 . . . . . . . Max in Single Turn 2 | . 1 1 . . 2 1 . . . . . . . Garrison Access 1 | . . . . . . 1 . . . . . . . Machines Repaired . | . . . . . . . . . . . . . . Machines Dismantled . | . . . . . . . . . . . . . . Machines Sabotaged . | . . . . . . . . . . . . . . Overloaded Fab Kills . | . . . . . . . . . . . . . . Hacking | -11 -10 -10 -10 -9 -8 -8 -7 -7 -7 -7 -7 -7 -6 --------- Run | Yrd Mat Min Exi Min Mat Sto Fac Gar Fac Low Low Zio Pro Machines Accessed 13 | . 2 . . . 1 6 1 1 2 . . . . Terminals 11 | . 2 . . . 1 5 . 1 2 . . . . Fabricators . | . . . . . . . . . . . . . . Repair Stations . | . . . . . . . . . . . . . . Recycling Units . | . . . . . . . . . . . . . . Scanalyzers . | . . . . . . . . . . . . . . Garrison Access 2 | . . . . . . 1 1 . . . . . . Total Hacks 40 | . 11 . . . 6 17 2 1 3 . . . . Successful 21 | . 6 . . . 2 10 1 1 1 . . . . Failed 19 | . 5 . . . 4 7 1 . 2 . . . . Catastrophic 3 | . 1 . . . . 1 . . 1 . . . . Database Lockouts . | . . . . . . . . . . . . . . Manual 6 | . 4 . 1 . . . . . . . . 1 . Terminals 36 | . 11 . . . 6 15 . 1 3 . . . . Fabricators . | . . . . . . . . . . . . . . Repair Stations . | . . . . . . . . . . . . . . Recycling Units . | . . . . . . . . . . . . . . Scanalyzers . | . . . . . . . . . . . . . . Garrison Access 4 | . . . . . . 2 2 . . . . . . Terminal Hacks 18 | . 6 . . . 2 8 . 1 1 . . . . Record 1 | . . . . . . 1 . . . . . . . Prototype ID Bank 1 | . . . . . . 1 . . . . . . . Open Door 2 | . . . . . . 1 . 1 . . . . . Alert Level 5 | . 2 . . . 1 2 . . . . . . . Unreport Threat 2 | . 1 . . . . 1 . . . . . . . Maintenance Status 1 | . 1 . . . . . . . . . . . . Security Status 1 | . . . . . 1 . . . . . . . . Recall Reinforcements 1 | . . . . . . 1 . . . . . . . Hauler Manifests 1 | . 1 . . . . . . . . . . . . Zone Layout 3 | . 1 . . . . 1 . . 1 . . . . Fabricator Hacks . | . . . . . . . . . . . . . . Repair Station Hacks . | . . . . . . . . . . . . . . Recycling Unit Hacks . | . . . . . . . . . . . . . . Scanalyzer . | . . . . . . . . . . . . . . Garrison Access Hacks 3 | . . . . . . 2 1 . . . . . . Unlock Access 2 | . . . . . . 1 1 . . . . . . Seal Access 1 | . . . . . . 1 . . . . . . . Unauthorized Hacks . | . . . . . . . . . . . . . . Terminals . | . . . . . . . . . . . . . . Fabricators . | . . . . . . . . . . . . . . Repair Stations . | . . . . . . . . . . . . . . Recycling Units . | . . . . . . . . . . . . . . Scanalyzers . | . . . . . . . . . . . . . . Garrison Access . | . . . . . . . . . . . . . . Data Cores Recovered . | . . . . . . . . . . . . . . Used . | . . . . . . . . . . . . . . Hacking Detections 12 | . 2 . . . 1 6 1 . 2 . . . . Full Trace Events . | . . . . . . . . . . . . . . Feedback Events . | . . . . . . . . . . . . . . Feedback Blocked . | . . . . . . . . . . . . . . Robot Schematics Acquired 2 | . . . . . . . . . . . . 2 . Robots Built . | . . . . . . . . . . . . . . Authchips . | . . . . . . . . . . . . . . Time . | . . . . . . . . . . . . . . Total Robot Build Rating . | . . . . . . . . . . . . . . Part Schematics Acquired 15 | . . . . . . . . . . . . 15 . Parts Built . | . . . . . . . . . . . . . . Authchips . | . . . . . . . . . . . . . . Time . | . . . . . . . . . . . . . . Total Part Build Rating . | . . . . . . . . . . . . . . Parts Repaired . | . . . . . . . . . . . . . . Time . | . . . . . . . . . . . . . . Parts Recycled . | . . . . . . . . . . . . . . Recycled Matter . | . . . . . . . . . . . . . . Retrieved Matter . | . . . . . . . . . . . . . . Retrieved Components . | . . . . . . . . . . . . . . Parts Scanalyzed . | . . . . . . . . . . . . . . Part Schematics Acquired . | . . . . . . . . . . . . . . Parts Damaged . | . . . . . . . . . . . . . . Bothacking | -11 -10 -10 -10 -9 -8 -8 -7 -7 -7 -7 -7 -7 -6 ------------ Run | Yrd Mat Min Exi Min Mat Sto Fac Gar Fac Low Low Zio Pro Used RIF Installer . | . . . . . . . . . . . . . . Robots Hacked . | . . . . . . . . . . . . . . Non-combat . | . . . . . . . . . . . . . . Combat . | . . . . . . . . . . . . . . Robot Hacks Applied . | . . . . . . . . . . . . . . Relay Couplers Released . | . . . . . . . . . . . . . . Fabnet Peak Effective % . | . . . . . . . . . . . . . . Robots Rewired . | . . . . . . . . . . . . . . Allies Hacked . | . . . . . . . . . . . . . . Hacks Repelled . | . . . . . . . . . . . . . . Allies | -11 -10 -10 -10 -9 -8 -8 -7 -7 -7 -7 -7 -7 -6 -------- Run | Yrd Mat Min Exi Min Mat Sto Fac Gar Fac Low Low Zio Pro Total Allies 19 | . . 3 . 5 . 10 . . . . 1 . . Largest Group 10 | . . 3 . 4 3 10 7 7 . . 1 . . Highest-Rated Group 173 | . . 40 . 83 77 173 125 125 . . 146 . . Highest-Rated Ally 146 | . . 16 . 34 34 34 29 29 . . 146 . . Total Orders 4 | . . 4 . . . . . . . . . . . GUARD 2 | . . 2 . . . . . . . . . . . AID 2 | . . 2 . . . . . . . . . . . Ally Attacks 127 | . . 10 . 4 25 51 . 37 . . . . . Total Damage 2279 | . . 77 . 109 971 658 . 464 . . . . . Kills 22 | . . 1 . 1 9 6 . 5 . . . . . Allies Corrupted . | . . . . . . . . . . . . . . Allies Melted . | . . . . . . . . . . . . . . Field Lobotomies 5 | . . . . 5 . . . . . . . . . Intel | -11 -10 -10 -10 -9 -8 -8 -7 -7 -7 -7 -7 -7 -6 ------- Run | Yrd Mat Min Exi Min Mat Sto Fac Gar Fac Low Low Zio Pro Robot Analysis Total . | . . . . . . . . . . . . . . Derelict Logs Recovered 8 | . . 2 . 1 . . . . . . 1 2 2 Drone Launches . | . . . . . . . . . . . . . . Drone Recoveries . | . . . . . . . . . . . . . . Exploration | -11 -10 -10 -10 -9 -8 -8 -7 -7 -7 -7 -7 -7 -6 ------------- Run | Yrd Mat Min Exi Min Mat Sto Fac Gar Fac Low Low Zio Pro Turns Passed 7819 | 65 354 304 129 212 560 849 60 259 1101 640 117 2575 594 Spaces Moved 5230 | 37 327 444 219 164 295 286 41 102 481 297 219 1996 322 Core 469 | 12 . . . . . . . . . 95 219 143 . Treads 907 | . . . . . . 81 41 102 481 202 . . . Legs 721 | 25 103 . . 93 295 205 . . . . . . . Wheels . | . . . . . . . . . . . . . . Hover 3133 | . 224 444 219 71 . . . . . . . 1853 322 Flight . | . . . . . . . . . . . . . . Fastest Speed 50 | 50 56 56 56 56 120 145 145 145 145 50 50 50 156 Average Speed 125 | 109 76 56 56 112 170 177 145 145 186 169 50 125 156 Slowest Speed 240 | 150 130 120 56 190 190 225 145 145 225 225 50 156 240 Overloaded Moves . | . . . . . . . . . . . . . . Propulsion Burnouts . | . . . . . . . . . . . . . . Robots Hopped . | . . . . . . . . . . . . . . Cave-ins Triggered 1 | . . 1 . . . . . . . . . . . Exploration Rate (%) 43 | 3 61 87 61 44 22 50 3 29 16 58 45 86 47 Regions Visited 13 Branch Regions 8 Pre-discovered Areas 2 | . . 2 . . . . . . . . . . . Known Exits Taken 8 | . 1 . . . 1 1 1 . 1 1 1 1 . Unknown Exits Taken 4 | 1 . 1 1 1 . . . . . . . . . Scrap Searched 9 | . . 1 . 1 . . . . . 1 1 4 1 Spaces Dug 19 | . . 19 . . . . . . . . . . . Terrain Destroyed 356 | . 110 183 . . 59 . . 4 . . . . . Melee . | . . . . . . . . . . . . . . Projectile . | . . . . . . . . . . . . . . AOE 356 | . 110 183 . . 59 . . 4 . . . . . Terrain Rammed . | . . . . . . . . . . . . . . Walls Destroyed . | . . . . . . . . . . . . . . Machines Disabled . | . . . . . . . . . . . . . . Actions | -11 -10 -10 -10 -9 -8 -8 -7 -7 -7 -7 -7 -7 -6 --------- Run | Yrd Mat Min Exi Min Mat Sto Fac Gar Fac Low Low Zio Pro Total 6144 | 50 394 473 225 179 335 577 42 171 619 411 223 2066 379 Wait 560 | . 25 11 . . 1 236 . 30 70 96 . 59 32 Move 5217 | 36 326 443 218 163 294 285 40 101 480 296 218 1995 322 Hop . | . . . . . . . . . . . . . . Pick Up 45 | 2 5 1 . 3 10 6 . 4 9 . 2 2 1 Fast Attach 29 | 5 4 . 3 1 3 4 . . 3 . . 6 . Attach 30 | 1 . 3 . 3 4 2 2 5 7 1 1 1 . Detach 3 | . . . 2 . . . . . . . . 1 . Swap 22 | 1 1 2 . 2 5 3 . 2 2 . . . 4 Drop 39 | . 5 . 2 1 6 6 . . 9 5 . 2 3 Fire 185 | 5 28 13 . 5 10 35 . 29 38 13 2 . 7 Melee 13 | . . . . 1 2 . . . . . . . 10 Ram . | . . . . . . . . . . . . . . Kick . | . . . . . . . . . . . . . . Crush 1 | . . . . . . . . . 1 . . . . Escape Stasis . | . . . . . . . . . . . . . . Rewire . | . . . . . . . . . . . . . . Trap . | . . . . . . . . . . . . . . Miscellaneous . | . . . . . . . . . . . . . . Route ------- -11/Scrapyard -10/Materials (discovered 4 exits: *Mat x2 / *Min x2) -10/Mines (discovered 3 exits: *Mat / *Exi / *Sub) -10/Exiles -9/Mines -8/Materials (discovered 3 exits: Fac x2 / *Sto) -8/Storage -7/Factory -7/Garrison -7/Factory -7/Lower Caves -7/Lower Caves (discovered 2 exits: *Fac / *Zio) -7/Zion -6/Proximity Caves History --------- Turn | Location | Event 17 | -11/Scrapyard | Discovered new exit (range 15) 66 | -11/Scrapyard | Entered Materials 93 | -10/Materials | Discovered new exit (range 6) 172 | -10/Materials | Discovered new exit (range 15) 277 | -10/Materials | Discovered new exit (range 16) 288 | -10/Materials | Identified exit to Materials 306 | -10/Materials | Build established: Mutant 404 | -10/Materials | Discovered new exit (range 14) 420 | -10/Materials | Identified exit to Mines 420 | -10/Materials | Entered Mines 420 | -10/Mines | Discovered new exit (range 4) 424 | -10/Mines | Identified exit to Subcaves 455 | -10/Mines | Learned 4 Materials zone layouts 469 | -10/Mines | Discovered exit to Materials (range 10) 471 | -10/Mines | Learned location of Storage (-8) 497 | -10/Mines | Assisted by bots powering up and referring to "LRC-V3" 537 | -10/Mines | Crushed by falling debris 539 | -10/Mines | Core integrity fell below 50% 568 | -10/Mines | Lost 3 parts (1n1u1w) 614 | -10/Mines | Found a damaged Exp. Sensor Array with a note attached 661 | -10/Mines | Learned location of Zion (-7) 721 | -10/Mines | Deemed a non-threat by the Exiles lab entrance 721 | -10/Mines | Discovered new exit (range 5) 724 | -10/Mines | Entered Exiles 739 | -10/Exiles | Met 8R-AWN 749 | -10/Exiles | Met EX-HEX 765 | -10/Exiles | Met EX-BIN 773 | -10/Exiles | Aligned with FarCom system 774 | -10/Exiles | Given EX-Vault access code 788 | -10/Exiles | Opened EX-Vault 789 | -10/Exiles | Found Prototype Special Weapon 789 | -10/Exiles | Identified Field Lobotomy Kit 796 | -10/Exiles | Found Prototype Device 796 | -10/Exiles | Identified Supersonic Drone Bay 812 | -10/Exiles | Warned to stay clear of 0b10 Research branches 827 | -10/Exiles | Met EX-DEC 847 | -10/Exiles | Discovered new exit (range 14) 853 | -10/Exiles | Left Exiles lab with Field Lobotomy Kit 853 | -10/Exiles | Entered Mines 854 | -9/Mines | Assembled infested the area 859 | -9/Mines | Assisted by a Guerilla fighting off Assembled 871 | -9/Mines | Assimilated as-17930 with FLK Orb 898 | -9/Mines | Assimilated as-67819 with FLK Orb 908 | -9/Mines | Assimilated as-17680 with FLK Orb 917 | -9/Mines | Assimilated D-53 Grenadier with FLK Orb 920 | -9/Mines | Assimilated D-53 Grenadier with FLK Orb 1054 | -9/Mines | Discovered new exit (range 9) 1065 | -9/Mines | Entered Materials 1065 | -8/Materials | Accompanied by 3 allies 1065 | -8/Materials | Evolved 4 slots: Utility x3, Weapon x1 1066 | -8/Materials | Identified exit to Storage 1067 | -8/Materials | Identified exit to Factory 1625 | -8/Materials | Entered Storage 1625 | -8/Storage | Accompanied by 1 ally 1632 | -8/Storage | Lost 3 parts (1n1u1w) 1644 | -8/Storage | Identified exit to Garrison 1898 | -8/Storage | Assisted by bots powering up and referring to "LRC-V3" 2194 | -8/Storage | Build established: Commander-Mutant 2443 | -8/Storage | Discovered exit to Factory (range 12) 2474 | -8/Storage | Entered Factory 2474 | -7/Factory | Accompanied by 7 allies 2474 | -7/Factory | Evolved 2 slots: Utility x2 2527 | -7/Factory | Identified exit to Garrison 2534 | -7/Factory | Entered Garrison 2534 | -7/Garrison | Accompanied by 7 allies 2646 | -7/Garrison | Triggered checkpoint 2648 | -7/Garrison | Triggered checkpoint 2654 | -7/Garrison | Triggered checkpoint 2656 | -7/Garrison | Triggered checkpoint 2691 | -7/Garrison | Lost 7 allies 2737 | -7/Garrison | Destroyed 11 combat bots 2739 | -7/Garrison | Lost 6 parts (1n2u3w) 2783 | -7/Garrison | Discovered new exit (range 8) 2793 | -7/Garrison | Entered Factory 3011 | -7/Factory | Build established: Scavenger-Gunner 3438 | -7/Factory | Build established: Scavenger-Skirmisher 3666 | -7/Factory | Noticed a derelict Sapper rigging charges 3813 | -7/Factory | Discovered new exit (range 16) 3885 | -7/Factory | Lost 4 parts (1n2u1w) 3891 | -7/Factory | Identified exit to Lower Caves 3894 | -7/Factory | Entered Lower Caves 4187 | -7/Lower Caves | Spotted B-75 Beast 4433 | -7/Lower Caves | Build established: Scavenger-Tank 4492 | -7/Lower Caves | Attracted the attention of an 0b10 checkpoint 4492 | -7/Lower Caves | Core integrity fell below 50% 4516 | -7/Lower Caves | Lost 4 parts (1n2u1w) 4531 | -7/Lower Caves | Discovered new exit (range 7) 4534 | -7/Lower Caves | Identified exit to Lower Caves 4534 | -7/Lower Caves | Entered another Lower Caves area 4534 | -7/Lower Caves | Discovered new exit (range 4) 4535 | -7/Lower Caves | Identified exit to Factory 4584 | -7/Lower Caves | Learned Factory emergency access door positions 4649 | -7/Lower Caves | Discovered new exit (range 4) 4650 | -7/Lower Caves | Identified exit to Zion 4651 | -7/Lower Caves | Entered Zion 4675 | -7/Zion | System corruption cleaned by Quarantine Array 4705 | -7/Zion | Learned Factory emergency access door positions 4785 | -7/Zion | Build established: Mutant 4910 | -7/Zion | Learned 8 Factory zone layouts 5045 | -7/Zion | Found Relay Coupler [Programmer] 5057 | -7/Zion | Found CR-A16's Pointy Stick 5154 | -7/Zion | Build established: Gunner 5217 | -7/Zion | Found Prototype Device 5217 | -7/Zion | Identified Mobile Refinery Mk. CCLXVII 5749 | -7/Zion | Rebuked by Imprinter 6135 | -7/Zion | Build established: Derelict-Gunner 7201 | -7/Zion | Discovered new exit (range 15) 7225 | -7/Zion | Identified exit to Proximity Caves 7226 | -7/Zion | Entered Proximity Caves 7426 | -6/Proximity Caves | Core integrity fell below 20% 7484 | -6/Proximity Caves | Spotter reported a threat 7603 | -6/Proximity Caves | Spotter reported a threat 7696 | -6/Proximity Caves | Learned location of 1 exit from Lower Caves 7719 | -6/Proximity Caves | Spotter reported a threat 7726 | -6/Proximity Caves | Build established: Mutant 7727 | -6/Proximity Caves | Spotter reported a threat 7780 | -6/Proximity Caves | Spotter reported a threat 7820 | -6/Proximity Caves | Destroyed by G-50 Soldier with Heavy Laser Last Messages --------------- Lgt. Ion Engine fries itself beyond repair. Searching scrap... Found Mak. Sword. Found Thermal Generator. Found Beamcaster. Found 65 Matter. Acquired 4 matter. Slug penetrates Wall. ALERT: Unidentified potential threat approaching Complex 0b10. Imp. Shield Generator destroyed. Critical hit (Burn: +27). Backup Propulsion III destroyed. Gauss Rifle destroyed. Critical hit (Burn: +37). Hvy. Battle Rifle destroyed. Lgt. Fission Core destroyed. Critical hit (Burn: +37). Backup Propulsion III destroyed. Critical hit (Burn: +37). Map ----- +----------------------------------------------------+ | ???????????????# ### ##???????????????? | | ???????????????????????## #???????????????? | | ????????????????????????# #???????????????? | | ????????????????????????# #???????????????? | | ????????????????????????## ##???????????????? | | ?????????????????????????## #????????????????? | | ??????????????????????????# ###??????????????? | | ??????????????????????????# #??????????????? | | ??????????????????????????# ##??????????????? | | ??????????????????????????## #???????????????? | | ???????????????????????????# #######?????????? | | ???????????????????????????# ##????????? | | ???????????????????????????# ! ### #????? | | ???????????????????????????# #### # #??? | | ???????????????????????????# ##?# # #????? | | ??????????????????????????# #??# # #???? | | ??????????????????????????# ??# ### #???? | | ??????????????????????????## ###??# ##?# ##???? | | ????????????????????????#####????## ##?# #????? | | ???????????????????????## #?????##[ #?? #???#? | | ??????????????????#???## #????##%/ ###??? #? #? | | ??????????? ##### ### ###### ! ###??? # #? | | ??????????? ## ### #? | | ????????????? #?? | | ??????????????????# g #?? | | ???????????????????# g @ ##### #? | | ???????????????????# ## ##???## ## # | | ??????????????????????#g ###?????# #?## | | ??????????????????????# ????????# #??? | | ????????????????????? ????????# #???? | | ???????????????????? ###???????# ##?????## # | | ?????????????????? ?????????# #????????? ## | | ????????????????? ?????????# ##???????????? | | ????????????????# ??????????## ####????????????? | | ?????????????????? ???????????##????????????????? | | ?????????????????##??????????????????????????????? | | ?????????????????????????????????????????????????? | | ?????????????????????????????????????????????????? | | ?????????????????????????????????????????????????? | | ?????????????????????????????????????????????????? | | ?????????????????????????????????????????????????? | | ?????????????????????????????????????????????????? | | ?????????????????????????????????????????????????? | | ?????????????????????????????????????????????????? | | ?????????????????????????????????????????????????? | | ?????????????????????????????????????????????????? | | ?????????????????????????????????????????????????? | | ?????????????????????????????????????????????????? | | ?????????????????????????????????????????????????? | | ?????????????????????????????????????????????????? | +----------------------------------------------------+ Best States ------------- Heat Dissipation 53 Coolant Potential 65 Energy Generation 18 Energy Capacity 290 Matter Stores 300 Matter Capacity 300 Sight Range 16 Terrain Scan Density 10 Jamming Range 12 Armor Coverage 825 Resistance: EM 15 Evasion (%) 55 Targeting Accuracy 5 Core Analysis 9 Recoil Reduction 2 Offensive Hacking 10 Item Schematics ----------------- Lance | -7/Zion | Archive Gauss Rifle | -7/Zion | Archive Hvy. Flak Cannon | -7/Zion | Archive Gauss Cannon | -7/Zion | Archive Imp. Proton Missile Launcher | -7/Zion | Archive Component Analysis Suite | -7/Zion | Archive Adv. Heat Sink | -7/Zion | Archive System Restoration Module | -7/Zion | Archive Phase Shifter | -7/Zion | Archive Recalibrator | -7/Zion | Archive Lyr. Heavy Armor Plating | -7/Zion | Archive Imp. Thermal Generator | -7/Zion | Archive Imp. Heavy Armor Plating | -7/Zion | Archive Flak Gun | -7/Zion | Archive Matter Filter | -7/Zion | Archive Robot Schematics ------------------ K-01 Serf | -7/Zion | Archive G-47 Trooper | -7/Zion | Archive Fabricated ------------ Nothing Alien Tech Used ----------------- None Achievements -------------- None Challenges ------------ None Game ------ Seed CentriumCatalystEngine Manual? 0 Play Time 01:09:08 Cumulative 18.9 hours Start 2024.08.11 @ 17:23:27 End 2024.08.11 @ 18:51:18 Sessions 1 Manual Loads 0 Difficulty Rogue Special Mode None Game No. 41 Rogue 41 Adventurer 0 Explorer 0 Win Type - Total 0 Types 0/0/0/0/0/0/0/0/0 Lore% 14 Gallery% 24 Achievement% 20 Wizard Run 0 Options --------- Layout 1 ASCII 0 Keyboard 0 Movement Mouse Keybinds 0 Fullscreen 1 Font 24/Smallcaps Map View 50x40 Zoom Use 0% Tactical HUD 0 Map Filters NONE Filters NONE Steam 1 RUN: 6f3cec79-e916-4239-bce3-00897c0b7234